bitfinex-derivatives/quotes_BTCF0:USTF0_20250709
["timestamp","ask_amount","ask_price","bid_price","bid_amount"]
[1752020788141,1.42927825,108890.0,108880.0,0.36737463]
[1752020789335,0.80407825,108890.0,108880.0,0.36737463]
[1752020789534,1.42931825,108890.0,108880.0,0.36737463]
[1752020790537,1.17873791,108890.0,108880.0,0.36737463]
[1752020792738,0.55349791,108890.0,108880.0,0.36737463]
[1752020792932,1.42931825,108890.0,108880.0,0.36737463]
[1752020796939,1.42931825,108890.0,108880.0,0.28471642]
[1752020803246,1.42931825,108890.0,108880.0,0.27035999]
[1752020803445,1.42931825,108890.0,108880.0,0.25959426]
[1752020804548,1.42931825,108890.0,108880.0,0.25859426]
[1752020804747,1.43131825,108890.0,108880.0,0.25759426]
[1752020804942,1.43131825,108890.0,108880.0,0.34025247]
[1752020808150,1.43131825,108890.0,108880.0,0.28517372]
[1752020808852,1.43131825,108890.0,108880.0,0.29952955]
[1752020809951,1.43131825,108890.0,108880.0,0.31029642]
[1752020814959,1.43131825,108890.0,108880.0,0.29952955]
[1752020823163,0.93015757,108890.0,108880.0,0.29952955]
[1752020823359,1.43131825,108890.0,108880.0,0.29952955]
[1752020828065,1.43131825,108890.0,108880.0,0.29953002]
[1752020831167,1.43131825,108890.0,108880.0,0.28065861]
[1752020831871,1.18073791,108890.0,108880.0,0.28065861]
[1752020833179,1.43131825,108890.0,108880.0,0.28065861]
[1752020840994,1.43131825,108890.0,108880.0,0.28065858]
[1752020847096,1.43131825,108890.0,108880.0,0.28065863]
[1752020852001,1.41431825,108890.0,108880.0,0.28065863]
[1752020854100,1.41431825,108890.0,108880.0,0.33578159]
[1752020856410,0.78907825,108890.0,108880.0,0.33578159]
[1752020856705,1.42942825,108890.0,108880.0,0.33578159]
[1752020858107,0.92826757,108890.0,108880.0,0.33578159]
[1752020858407,1.42942825,108890.0,108880.0,0.33578159]
[1752020859001,1.42942825,108890.0,108880.0,0.28065863]
[1752020861408,1.42942825,108890.0,108880.0,0.28065864]
[1752020871420,1.42942825,108890.0,108880.0,0.09701454]
[1752020872617,0.183644,108880.0,108870.0,0.29483107]
[1752020872819,0.78885468,108880.0,108870.0,0.24891637]
[1752020873614,0.78885468,108880.0,108870.0,0.24991637]
[1752020874215,0.78885468,108880.0,108870.0,0.25091637]
[1752020876512,0.79975786,108880.0,108870.0,0.25091637]
[1752020877335,0.79975786,108880.0,108860.0,0.03493083]
[1752020877336,0.1836609,108870.0,108860.0,0.03493083]
[1752020877530,0.1836777,108860.0,108850.0,0.33063852]
[1752020877720,0.68483838,108860.0,108850.0,0.33924593]
[1752020877919,0.2561277,108860.0,108850.0,0.33924593]
[1752020878112,0.75728838,108860.0,108850.0,0.33924593]
[1752020878312,0.75728838,108860.0,108850.0,0.29660751]
[1752020878518,0.2561277,108860.0,108850.0,0.29660751]
[1752020878723,0.75728838,108860.0,108850.0,0.35171593]
[1752020879017,0.75728838,108860.0,108850.0,0.35571593]
[1752020879427,0.75728838,108860.0,108850.0,0.30060751]
[1752020880120,0.75728838,108860.0,108850.0,0.30360751]
[1752020880526,0.79038838,108860.0,108850.0,0.30360751]
[1752020881027,0.79038838,108860.0,108850.0,0.29760751]
[1752020881322,0.79038838,108860.0,108850.0,0.29960751]
[1752020882028,1.41570838,108860.0,108850.0,0.29960751]
[1752020882818,0.79038838,108860.0,108850.0,0.29960751]
[1752020883019,1.41566838,108860.0,108850.0,0.29960751]
[1752020884631,1.41566838,108860.0,108850.0,0.31394185]
[1752020888430,1.41566838,108860.0,108850.0,0.31393162]
[1752020888926,1.41566838,108860.0,108850.0,0.30533444]
[1752020889126,1.41566838,108860.0,108850.0,0.31393105]
[1752020891833,1.41566838,108860.0,108850.0,0.31393428]
[1752020892636,1.41566838,108860.0,108850.0,0.39640244]
[1752020893335,0.2892277,108860.0,108850.0,0.98698278]
[1752020893535,1.16488804,108860.0,108850.0,0.98698278]
[1752020893835,1.16488804,108860.0,108850.0,0.73640244]
[1752020894027,1.16488804,108860.0,108850.0,0.98698278]
[1752020894428,1.16500804,108860.0,108850.0,0.98698278]
[1752020894828,1.16500804,108860.0,108850.0,0.98696921]
[1752020895233,0.10555,108860.0,108850.0,1.00696921]
[1752020895534,0.2485776,108860.0,108850.0,0.98850105]
[1752020895736,0.8902676,108860.0,108850.0,1.07098034]
[1752020896136,0.8902676,108860.0,108850.0,0.98850105]
[1752020896735,0.2651076,108860.0,108850.0,0.98850105]
[1752020897037,0.08143,108860.0,108850.0,0.98850105]
[1752020897230,0.01653,108860.0,108850.0,1.09844586]
[1752020897428,0.64169,108860.0,108850.0,1.09844586]
[1752020898432,0.01653,108860.0,108850.0,1.08986915]
[1752020898630,0.64165,108860.0,108850.0,1.08986915]
[1752020898831,0.64165,108860.0,108850.0,1.03491829]
[1752020899030,0.64165,108860.0,108850.0,1.11740921]
[1752020899439,0.01653,108860.0,108850.0,1.11740921]
[1752020899639,0.01653,108860.0,108850.0,1.06241526]
[1752020899640,0.64161,108860.0,108850.0,1.06241526]
[1752020900834,0.64161,108860.0,108850.0,1.3129956]
[1752020900835,0.01653,108860.0,108850.0,1.3129956]
[1752020901035,0.01653,108860.0,108850.0,1.06241526]
[1752020903437,0.01653,108860.0,108850.0,0.97980605]
[1752020903637,1.21371221,108870.0,108860.0,0.1836776]
[1752020903943,1.21363221,108870.0,108860.0,0.9585006]
[1752020904338,1.21363221,108870.0,108860.0,0.9460306]
[1752020904537,1.21363221,108870.0,108860.0,0.9585006]
[1752020905142,1.21363221,108870.0,108860.0,0.9595006]
[1752020905745,1.21363221,108870.0,108860.0,0.5995006]
[1752020906243,1.21363221,108870.0,108860.0,0.59946515]
[1752020906943,1.21363221,108870.0,108860.0,0.92946515]
[1752020907138,1.21363221,108870.0,108860.0,0.34888481]
[1752020907448,1.21363221,108870.0,108860.0,0.94946515]
[1752020907844,1.21363221,108870.0,108860.0,0.59946515]
[1752020908044,1.21363221,108870.0,108860.0,0.96946515]
[1752020908644,0.58783221,108870.0,108860.0,0.96946515]
[1752020908832,1.22858221,108870.0,108860.0,0.96946515]
[1752020909439,0.57882221,108870.0,108860.0,1.22004549]
[1752020909646,1.20446221,108870.0,108860.0,0.96946515]
[1752020909836,0.60143221,108870.0,108860.0,0.96946515]
[1752020910037,1.22699221,108870.0,108860.0,0.96946515]
[1752020910446,0.60143221,108870.0,108860.0,0.96946515]
[1752020910646,1.22695221,108870.0,108860.0,0.96946515]
[1752020911739,1.22695221,108870.0,108860.0,0.59946515]
[1752020912349,1.22695221,108870.0,108860.0,0.54444633]
[1752020912547,1.22695221,108870.0,108860.0,0.90444633]
[1752020912848,1.22695221,108870.0,108860.0,0.54444633]
[1752020913250,1.22695221,108870.0,108860.0,0.89444633]
[1752020913649,0.60143221,108870.0,108860.0,0.89444633]
[1752020913837,1.22687221,108870.0,108860.0,0.89444633]
[1752020914747,1.22687221,108870.0,108860.0,0.88025617]
[1752020914944,0.60143221,108870.0,108860.0,0.89443179]
[1752020915144,1.22683221,108870.0,108860.0,0.89443179]
[1752020916551,0.60143221,108870.0,108860.0,0.89443179]
[1752020916753,1.22679221,108870.0,108860.0,0.89443179]
[1752020918055,0.30493547,108870.0,108860.0,1.14501213]
[1752020918251,0.93025547,108870.0,108860.0,1.14501213]
[1752020918457,1.18083581,108870.0,108860.0,1.14501213]
[1752020918847,1.18083581,108870.0,108860.0,0.89443179]
[1752020919057,0.55551581,108870.0,108860.0,0.89443179]
[1752020919248,1.18075581,108870.0,108860.0,0.89443179]
[1752020920260,1.18071581,108870.0,108860.0,0.89443179]
[1752020920457,1.18067581,108870.0,108860.0,0.89443179]
[1752020923162,1.18067581,108870.0,108860.0,0.89444396]
[1752020923361,1.18067581,108870.0,108860.0,0.64386566]
[1752020923661,1.18067581,108870.0,108860.0,0.894446]
[1752020925261,1.18067581,108870.0,108860.0,0.544446]
[1752020928165,1.18067581,108870.0,108860.0,0.914446]
[1752020928462,0.99700141,108870.0,108860.0,0.914446]
[1752020929967,0.99700141,108870.0,108860.0,1.16502634]
[1752020930156,0.37184141,108870.0,108860.0,1.16502634]
[1752020930357,0.99688141,108870.0,108860.0,1.16502634]
[1752020930858,0.12126107,108870.0,108860.0,1.16502634]
[1752020931059,0.72369107,108870.0,108860.0,1.79006634]
[1752020932164,0.74639107,108870.0,108860.0,1.79006634]
[1752020932365,0.12135107,108870.0,108860.0,1.79006634]
[1752020933566,0.12135107,108870.0,108860.0,1.28890566]
[1752020933769,0.12135107,108870.0,108860.0,1.79006634]
[1752020934868,0.12135107,108870.0,108860.0,1.70753811]
[1752020937277,0.12135107,108870.0,108860.0,1.79020512]
[1752020938077,0.12135107,108870.0,108860.0,1.70753811]
[1752020938278,0.12135107,108870.0,108860.0,1.79020396]
[1752020938871,0.09865107,108870.0,108860.0,1.79020396]
[1752020939070,0.09865107,108870.0,108860.0,1.70753811]
[1752020939471,0.09865107,108870.0,108860.0,1.81748292]
[1752020940780,0.09865107,108870.0,108860.0,1.70753811]
[1752020940971,0.09865107,108870.0,108860.0,1.81748292]
[1752020941178,0.09865107,108870.0,108860.0,1.70753811]
[1752020941576,0.09865107,108870.0,108860.0,1.79019356]
[1752020942580,0.09865107,108870.0,108860.0,1.15268356]
[1752020942882,0.09865107,108870.0,108860.0,1.52710322]
[1752020942883,0.37193141,108870.0,108860.0,1.52710322]
[1752020943070,0.37193141,108870.0,108860.0,1.77768356]
[1752020943270,0.12135107,108870.0,108860.0,1.77768356]
[1752020944081,0.10374758,108870.0,108860.0,1.77768356]
[1752020944986,0.10433758,108870.0,108860.0,1.77768356]
[1752020948881,0.10433758,108870.0,108860.0,1.68447279]
[1752020949988,0.10433758,108870.0,108860.0,1.60181734]
[1752020950191,0.08163758,108870.0,108860.0,1.60181734]
[1752020950390,0.08163758,108870.0,108860.0,1.64170696]
[1752020951087,0.08163758,108870.0,108860.0,1.60181734]
[1752020951692,0.08163758,108870.0,108860.0,1.61045494]
[1752020951881,0.08163758,108870.0,108860.0,1.50579828]
[1752020952081,0.08163758,108870.0,108860.0,1.68947588]
[1752020953892,0.03753317,108870.0,108860.0,1.70383278]
[1752020954692,0.03753317,108870.0,108860.0,1.69519518]
[1752020956493,0.03753317,108870.0,108860.0,1.72569518]
[1752020957086,0.03753317,108870.0,108860.0,1.75769518]
[1752020960598,0.03753317,108870.0,108860.0,1.86763999]
[1752020960897,0.02183317,108870.0,108860.0,1.87542999]
[1752020961198,0.48902524,108880.0,108870.0,0.1836607]
[1752020961397,0.53722524,108880.0,108870.0,0.87371471]
[1752020961895,0.5151735,108880.0,108870.0,0.87371471]
[1752020963899,0.49312176,108880.0,108870.0,0.87371471]
[1752020964802,0.49312176,108880.0,108870.0,0.87371455]
[1752020965702,0.0803,108880.0,108870.0,0.87371455]
[1752020965894,0.0325,108880.0,108870.0,1.04943798]
[1752020966201,0.0325,108880.0,108870.0,1.08073798]
[1752020966401,0.0325,108880.0,108870.0,1.11353798]
[1752020966995,0.0325,108880.0,108870.0,1.11353705]
[1752020967195,0.0325,108880.0,108870.0,1.11553705]
[1752020967598,0.0325,108880.0,108870.0,0.86495671]
[1752020967903,0.05369,108890.0,108880.0,0.1836439]
[1752020968105,0.07726,108890.0,108880.0,2.33151025]
[1752020968300,0.07726,108890.0,108880.0,2.31904025]
[1752020968496,0.260887,108890.0,108880.0,1.44787957]
[1752020968705,0.53435734,108890.0,108880.0,1.69845991]
[1752020969204,0.53435734,108890.0,108880.0,1.70860724]
[1752020969507,0.53435734,108890.0,108880.0,1.98860724]
[1752020969806,0.53435734,108890.0,108880.0,2.00860724]
[1752020970006,0.53435734,108890.0,108880.0,2.06366791]
[1752020970207,0.53435734,108890.0,108880.0,1.76366791]
[1752020970806,0.53435734,108890.0,108880.0,1.75352058]
[1752020971305,0.53435734,108890.0,108880.0,1.73916491]
[1752020972209,0.53435734,108890.0,108880.0,1.76669525]
[1752020972400,0.53435734,108890.0,108880.0,1.51611491]
[1752020972602,0.53435734,108890.0,108880.0,1.77713871]
[1752020972802,0.53435734,108890.0,108880.0,1.76669525]
[1752020975410,0.53435734,108890.0,108880.0,0.51681525]
[1752020976316,0.53435734,108890.0,108880.0,0.52928525]
[1752020976814,0.53435734,108890.0,108880.0,0.51681525]
[1752020977210,0.53435734,108890.0,108880.0,0.52928525]
[1752020977406,0.53435734,108890.0,108880.0,0.51681525]
[1752020977608,0.53435734,108890.0,108880.0,0.52928525]
[1752020978912,0.53535734,108890.0,108880.0,0.52928525]
[1752020979711,0.53735734,108890.0,108880.0,0.52928525]
[1752020982316,0.53735734,108890.0,108880.0,0.26623491]
[1752020982517,0.53735734,108890.0,108880.0,0.52928525]
[1752020982722,0.53735734,108890.0,108880.0,0.51681525]
[1752020982918,0.53735734,108890.0,108880.0,0.52928525]
[1752020984420,1.10793768,108890.0,108880.0,0.09506101]
[1752020984720,1.10793768,108890.0,108880.0,0.15010267]
[1752020985015,1.10793768,108890.0,108880.0,0.06751393]
[1752020985323,1.10793768,108890.0,108880.0,0.10880003]
[1752020985909,1.10793768,108890.0,108880.0,0.09633003]
[1752020985910,1.06998768,108890.0,108880.0,0.09633003]
[1752020986220,1.09287768,108890.0,108880.0,0.0412861]
[1752020986408,0.77287768,108890.0,108880.0,0.0412861]
[1752020986717,1.09793768,108890.0,108880.0,0.0412861]
[1752020987620,0.78793768,108890.0,108880.0,0.0412861]
[1752020987821,1.10793768,108890.0,108880.0,0.0412861]
[1752020994023,0.78793768,108890.0,108880.0,0.0412861]
[1752020994224,1.10793768,108890.0,108880.0,0.0412861]
[1752021002128,1.10793768,108890.0,108880.0,0.05564374]
[1752021002323,1.10793768,108890.0,108880.0,0.06641197]
[1752021003228,1.10793768,108890.0,108880.0,0.05564374]
[1752021007022,1.10793768,108890.0,108880.0,0.05563001]
[1752021010930,0.78793768,108890.0,108880.0,0.05563001]
[1752021011129,1.10793768,108890.0,108880.0,0.06639824]
[1752021013133,1.10793768,108890.0,108880.0,0.12144217]
[1752021018832,0.78793768,108890.0,108880.0,0.12144217]
[1752021019137,1.10793768,108890.0,108880.0,0.12144217]
[1752021020941,1.73293768,108890.0,108880.0,0.12144217]
[1752021021829,1.81535826,108890.0,108880.0,0.06639824]
[1752021023042,1.81535826,108890.0,108880.0,0.0520406]
[1752021025745,1.19035826,108890.0,108880.0,0.0520406]
[1752021025940,1.81535826,108890.0,108880.0,0.0520406]
[1752021027746,1.81535826,108890.0,108880.0,0.04127237]
[1752021027947,1.81535826,108890.0,108880.0,0.0520406]
[1752021031952,1.73293768,108890.0,108880.0,0.10708453]
[1752021034852,1.41293768,108890.0,108880.0,0.10708453]
[1752021035053,1.73293768,108890.0,108880.0,0.10708453]
[1752021037352,1.73293768,108890.0,108880.0,0.0963163]
[1752021037862,1.73293768,108890.0,108880.0,0.05504393]
[1752021038263,1.73293768,108890.0,108880.0,0.09638964]
[1752021038958,1.41293768,108890.0,108880.0,0.09638964]
[1752021039256,1.73293768,108890.0,108880.0,0.05504393]
[1752021039662,1.73293768,108890.0,108880.0,0.10715686]
[1752021040367,0.911777,108890.0,108880.0,0.10715686]
[1752021040666,1.41293768,108890.0,108880.0,0.10715686]
[1752021042068,1.221777,108890.0,108880.0,0.10715686]
[1752021042259,1.41293768,108890.0,108880.0,0.10715686]
[1752021042462,1.41289768,108890.0,108880.0,0.10715686]
[1752021043468,1.41289768,108890.0,108880.0,0.05504393]
[1752021045271,1.41289768,108890.0,108880.0,0.09638616]
[1752021045472,1.41289768,108890.0,108880.0,0.10715431]
[1752021048173,1.73289768,108890.0,108880.0,0.10715431]
[1752021050476,1.73289768,108890.0,108880.0,0.10715432]
[1752021051376,1.41289768,108890.0,108880.0,0.10715432]
[1752021051575,1.73289768,108890.0,108880.0,0.10715432]
[1752021054379,1.73289768,108890.0,108880.0,0.06581209]
[1752021054877,1.73289768,108890.0,108880.0,0.10715446]
[1752021055577,1.73289768,108890.0,108880.0,0.06581209]
[1752021055778,1.10793768,108890.0,108880.0,0.06581209]
[1752021055980,1.73285768,108890.0,108880.0,0.06581209]
[1752021056479,1.10793768,108890.0,108880.0,0.06581209]
[1752021056684,1.73285768,108890.0,108880.0,0.06581209]
[1752021057181,1.10793768,108890.0,108880.0,0.06581209]
[1752021057383,1.73285768,108890.0,108880.0,0.06581209]
[1752021059483,1.10793768,108890.0,108880.0,0.06581209]
[1752021059684,1.73285768,108890.0,108880.0,0.06581209]
[1752021059882,1.10793768,108890.0,108880.0,0.06581209]
[1752021060078,1.73285768,108890.0,108880.0,0.06581209]
[1752021062875,1.73285768,108890.0,108880.0,0.08016955]
[1752021065679,1.73285768,108890.0,108880.0,0.08016969]
[1752021066385,1.41285768,108890.0,108880.0,0.08016969]
[1752021066580,1.73285768,108890.0,108880.0,0.08016969]
[1752021069182,1.73285768,108890.0,108880.0,0.08006651]
[1752021071890,1.81527826,108890.0,108880.0,0.06637016]
[1752021072390,1.81527826,108890.0,108880.0,0.06637015]
[1752021075492,1.81527826,108890.0,108880.0,0.05560197]
[1752021077595,1.81527826,108890.0,108880.0,0.05560442]
[1752021077785,1.81527826,108890.0,108880.0,0.04134759]
[1752021077982,1.81527826,108890.0,108880.0,0.01425683]
[1752021078186,1.81527826,108890.0,108880.0,0.05560438]
[1752021081507,1.81527826,108890.0,108880.0,0.05560251]
[1752021081892,1.73285768,108890.0,108880.0,0.06929889]
[1752021083703,1.75063472,108890.0,108880.0,0.06929889]
[1752021085504,1.75063472,108890.0,108880.0,0.08006707]
[1752021087203,1.75063472,108890.0,108880.0,0.08006722]
[1752021090306,2.00121506,108890.0,108880.0,0.09255044]
[1752021090603,2.00121506,108890.0,108880.0,0.06637281]
[1752021090999,2.00121506,108890.0,108880.0,0.05560463]
[1752021091201,2.00121506,108890.0,108880.0,1e-08]
[1752021091506,0.20131316,108870.0,108860.0,0.11253506]
[1752021091706,1.66344384,108870.0,108860.0,0.03]
[1752021091906,1.69574384,108870.0,108860.0,0.03]
[1752021092107,1.72057384,108870.0,108860.0,0.03]
[1752021092902,1.72057384,108870.0,108860.0,0.031]
[1752021093401,1.72057384,108870.0,108860.0,0.032]
[1752021093807,1.40057384,108870.0,108860.0,0.032]
[1752021094007,1.72057384,108870.0,108860.0,0.032]
[1752021094205,1.72357384,108870.0,108860.0,0.03]
[1752021094908,1.09829384,108870.0,108860.0,0.03]
[1752021095304,1.72373384,108870.0,108860.0,0.03]
[1752021095510,1.75553384,108870.0,108860.0,0.03]
[1752021095906,0.81009384,108870.0,108860.0,0.03]
[1752021096111,1.43553384,108870.0,108860.0,0.03]
[1752021097606,0.81009384,108870.0,108860.0,0.03]
[1752021097907,1.43569384,108870.0,108860.0,0.03]
[1752021099315,0.1836776,108860.0,108850.0,0.11507264]
[1752021099513,0.70052828,108860.0,108850.0,0.15774264]
[1752021099709,0.72535828,108860.0,108850.0,0.15774264]
[1752021100402,1.35099828,108860.0,108850.0,0.15774264]
[1752021101015,1.35095828,108860.0,108850.0,0.34143714]
[1752021101708,0.72535828,108860.0,108850.0,0.59201748]
[1752021102017,1.35091828,108860.0,108850.0,0.59201748]
[1752021102610,0.72535828,108860.0,108850.0,0.59201748]
[1752021102809,1.35091828,108860.0,108850.0,0.59201748]
[1752021103110,0.72535828,108860.0,108850.0,0.59201748]
[1752021103414,1.35091828,108860.0,108850.0,0.59201748]
[1752021104717,1.35091828,108860.0,108850.0,0.40832298]
[1752021105016,1.35091828,108860.0,108850.0,0.15774264]
[1752021105208,1.35091828,108860.0,108850.0,0.40832298]
[1752021105717,1.33522828,108860.0,108850.0,0.61104938]
[1752021106514,0.70966828,108860.0,108850.0,0.42735488]
[1752021106713,1.35107828,108860.0,108850.0,0.42735488]
[1752021107416,1.35107828,108860.0,108850.0,0.61104938]
[1752021107819,1.35107828,108860.0,108850.0,0.36046904]
[1752021109618,0.72535828,108860.0,108850.0,0.36046904]
[1752021109819,1.35091828,108860.0,108850.0,0.36046904]
[1752021110918,0.72535828,108860.0,108850.0,0.36046904]
[1752021111119,1.35087828,108860.0,108850.0,0.34799904]
[1752021111421,1.36546828,108860.0,108850.0,0.34799904]
[1752021112109,1.37530542,108860.0,108850.0,0.34799904]
[1752021112310,1.37530542,108860.0,108850.0,0.36046904]
[1752021112711,0.73994828,108860.0,108850.0,0.36046904]
[1752021112919,1.38123828,108860.0,108850.0,0.36046904]
[1752021113420,0.75571828,108860.0,108850.0,0.36046904]
[1752021114021,1.38111828,108860.0,108850.0,0.36046904]
[1752021116525,1.39075441,108860.0,108850.0,0.36046904]
[1752021117923,1.38111828,108860.0,108850.0,0.36046904]
[1752021118124,0.75571828,108860.0,108850.0,0.36046904]
[1752021118324,1.38095828,108860.0,108850.0,0.36046904]
[1752021118624,0.8797976,108860.0,108850.0,0.36046904]
[1752021118824,1.38095828,108860.0,108850.0,0.36046904]
[1752021119224,0.75571828,108860.0,108850.0,0.36046904]
[1752021119423,1.38087828,108860.0,108850.0,0.27793398]
[1752021119928,0.75571828,108860.0,108850.0,0.27793398]
[1752021120225,1.38087828,108860.0,108850.0,0.27793398]
[1752021121224,0.75571828,108860.0,108850.0,0.27793398]
[1752021121526,1.41179828,108860.0,108850.0,0.38805533]
[1752021121729,1.41179828,108860.0,108850.0,0.35565533]
[1752021121931,1.41179828,108860.0,108850.0,0.32823329]
[1752021122415,1.16121794,108860.0,108850.0,0.32823329]
[1752021122620,1.16117794,108860.0,108850.0,0.32823329]
[1752021122831,0.78671828,108860.0,108850.0,0.57881363]
[1752021123325,1.41175828,108860.0,108850.0,0.57881363]
[1752021124127,1.41175828,108860.0,108850.0,0.32823329]
[1752021124327,1.41175828,108860.0,108850.0,0.57881363]
[1752021125128,0.78671828,108860.0,108850.0,0.57881363]
[1752021125329,1.41175828,108860.0,108850.0,0.57881363]
[1752021125830,0.78671828,108860.0,108850.0,0.57881363]
[1752021126026,1.41175828,108860.0,108850.0,0.57881363]
[1752021127228,0.78671828,108860.0,108850.0,0.57881363]
[1752021127429,1.41175828,108860.0,108850.0,0.57881363]
[1752021127729,0.78671828,108860.0,108850.0,0.53614363]
[1752021127930,1.41175828,108860.0,108850.0,0.53614363]
[1752021128732,0.78671828,108860.0,108850.0,0.53614363]
[1752021128926,1.41175828,108860.0,108850.0,0.53614363]
[1752021129323,1.41175828,108860.0,108850.0,0.54861363]
[1752021129529,0.78671828,108860.0,108850.0,0.53614363]
[1752021129731,1.41175828,108860.0,108850.0,0.53614363]
[1752021130935,1.41175828,108860.0,108850.0,0.28556329]
[1752021131135,0.78671828,108860.0,108850.0,0.28556329]
[1752021131336,1.41175828,108860.0,108850.0,0.28556329]
[1752021131539,0.78671828,108860.0,108850.0,0.28556329]
[1752021131733,1.41175828,108860.0,108850.0,0.28556329]
[1752021131934,1.41175828,108860.0,108850.0,0.20286398]
[1752021133527,0.78671828,108860.0,108850.0,0.20286398]
[1752021133738,1.41175828,108860.0,108850.0,0.20286398]
[1752021134539,0.78671828,108860.0,108850.0,0.20286398]
[1752021134836,1.41175828,108860.0,108850.0,0.20286398]
[1752021136340,0.78671828,108860.0,108850.0,0.20286398]
[1752021136536,1.41175828,108860.0,108850.0,0.20286398]
[1752021136734,0.78671828,108860.0,108850.0,0.20286398]
[1752021136935,1.41175828,108860.0,108850.0,0.20286398]
[1752021138640,1.41175828,108860.0,108850.0,0.31298533]
[1752021139540,1.41175828,108860.0,108850.0,0.31298523]
[1752021142042,1.41175828,108860.0,108850.0,0.20286388]
[1752021144448,1.41175828,108860.0,108850.0,0.45344422]
[1752021147359,1.41175828,108860.0,108850.0,0.56356557]
[1752021149053,1.41175828,108860.0,108850.0,0.31298523]
[1752021149255,1.41175828,108860.0,108850.0,0.56356557]
[1752021149661,1.41175828,108860.0,108850.0,0.31298523]
[1752021150550,1.41175828,108860.0,108850.0,0.56356557]
[1752021151862,1.41175828,108860.0,108850.0,0.31298523]
[1752021157362,1.41175828,108860.0,108850.0,0.20286388]
[1752021157664,1.41175828,108860.0,108850.0,0.48374422]
[1752021160262,1.41175828,108860.0,108850.0,0.23316388]
[1752021160662,0.9105976,108860.0,108850.0,0.23316388]
[1752021160867,1.41175828,108860.0,108850.0,0.23316388]
[1752021161563,0.78671828,108860.0,108850.0,0.23316388]
[1752021161761,1.41167828,108860.0,108850.0,0.23316388]
[1752021161965,0.78671828,108860.0,108850.0,0.31586762]
[1752021162151,1.13009794,108860.0,108850.0,0.93891796]
[1752021162356,1.13009794,108860.0,108850.0,0.97011796]
[1752021163164,0.8795176,108860.0,108850.0,0.97011796]
[1752021163466,1.13009794,108860.0,108850.0,0.97011796]
[1752021164359,0.2545576,108860.0,108850.0,0.61011796]
[1752021164564,1.09935794,108860.0,108850.0,0.96011796]
[1752021165069,0.8487776,108860.0,108850.0,0.96011796]
[1752021165259,1.09935794,108860.0,108850.0,0.96011796]
[1752021165455,1.09935794,108860.0,108850.0,0.61011796]
[1752021170161,0.8797776,108860.0,108850.0,0.61011796]
[1752021170363,1.13035794,108860.0,108850.0,0.61011796]
[1752021175072,1.13035794,108860.0,108850.0,0.52741422]
[1752021176869,1.13035794,108860.0,108850.0,0.63753557]
[1752021180875,1.13035794,108860.0,108850.0,0.38695523]
[1752021181172,1.13035794,108860.0,108850.0,0.63753557]
[1752021181972,1.13035794,108860.0,108850.0,0.35575523]
[1752021182178,1.13035794,108860.0,108850.0,0.60633557]
[1752021182366,1.16125794,108860.0,108850.0,0.60633557]
[1752021182675,1.41183828,108860.0,108850.0,0.60633557]
[1752021183182,0.9106776,108860.0,108850.0,0.60633557]
[1752021183476,1.16125794,108860.0,108850.0,0.60633557]
[1752021183877,1.16125794,108860.0,108850.0,0.62069487]
[1752021184576,0.53629794,108860.0,108850.0,0.62069487]
[1752021184777,1.16121794,108860.0,108850.0,0.62069487]
[1752021187178,1.14505794,108860.0,108850.0,0.60822487]
[1752021189582,1.14505794,108860.0,108850.0,0.60817465]
[1752021190684,1.12107794,108860.0,108850.0,0.60817465]
[1752021190886,1.14505794,108860.0,108850.0,0.60817465]
[1752021193693,1.14505794,108860.0,108850.0,0.60804113]
[1752021199094,1.14505794,108860.0,108850.0,0.59386557]
[1752021199583,0.8944776,108860.0,108850.0,0.59386557]
[1752021199783,1.16050794,108860.0,108850.0,0.59386557]
[1752021202696,0.53558794,108860.0,108850.0,0.59386557]
[1752021202896,1.16046794,108860.0,108850.0,0.59386557]
[1752021203097,1.16046794,108860.0,108850.0,0.60633557]
[1752021207990,0.8789876,108860.0,108850.0,0.97633557]
[1752021208194,1.12956794,108860.0,108850.0,0.63713557]
[1752021208788,1.12956794,108860.0,108850.0,0.98713557]
[1752021208987,1.12956794,108860.0,108850.0,0.63713557]
[1752021211998,1.12956794,108860.0,108850.0,0.60972371]
[1752021213502,0.8789876,108860.0,108850.0,0.60972371]
[1752021213699,1.12956794,108860.0,108850.0,0.60972371]
[1752021214802,0.50468794,108860.0,108850.0,0.98972371]
[1752021215099,0.1836776,108860.0,108850.0,1.26771591]
[1752021215299,0.8243276,108860.0,108850.0,1.26771591]
[1752021215499,0.8085576,108860.0,108850.0,1.25524591]
[1752021215794,0.8243276,108860.0,108850.0,1.00466557]
[1752021217701,0.8243276,108860.0,108850.0,1.25524591]
[1752021218403,0.8242876,108860.0,108850.0,1.25524591]
[1752021219005,0.8085176,108860.0,108850.0,1.25524591]
[1752021219303,0.8242876,108860.0,108850.0,1.25524591]
[1752021220307,0.8242876,108860.0,108850.0,1.88008591]
[1752021222909,0.8242876,108860.0,108850.0,1.62950557]
[1752021223708,0.8242876,108860.0,108850.0,1.88008591]
[1752021224609,0.8242876,108860.0,108850.0,1.62950557]
[1752021226311,0.8242876,108860.0,108850.0,1.6296461]
[1752021226912,0.64061,108860.0,108850.0,1.6296461]
[1752021227210,0.8242876,108860.0,108850.0,1.6296461]
[1752021228107,0.1994476,108860.0,108850.0,1.6296461]
[1752021231009,0.01577,108860.0,108850.0,1.14526509]
[1752021231317,0.1836472,108880.0,108870.0,0.1836607]
[1752021231518,0.2324172,108880.0,108870.0,0.94336374]
[1752021231707,0.2324172,108880.0,108870.0,0.97606374]
[1752021233015,0.2324172,108880.0,108870.0,0.98585279]
[1752021233214,0.2324172,108880.0,108870.0,0.87569937]
[1752021234214,0.2324172,108880.0,108870.0,0.9582571]
[1752021234816,0.2166472,108880.0,108870.0,0.9582571]
[1752021235017,0.2560872,108880.0,108870.0,0.9707271]
[1752021236412,0.2166472,108880.0,108870.0,0.9582571]
[1752021236617,0.2318072,108880.0,108870.0,0.9707271]
[1752021236816,0.2318072,108880.0,108870.0,0.9582571]
[1752021237218,0.2318072,108880.0,108870.0,0.9707271]
[1752021237420,0.2318038,108880.0,108870.0,0.9582571]
[1752021237923,0.2318038,108880.0,108870.0,0.9707271]
[1752021238320,0.04816,108880.0,108870.0,0.9707271]
[1752021238519,0.2318038,108880.0,108870.0,1.0008271]
[1752021239023,0.2318038,108880.0,108870.0,0.9707271]
[1752021239324,0.2623038,108880.0,108870.0,0.9707271]
[1752021239921,0.2471438,108880.0,108870.0,0.9582571]
[1752021240118,0.2865838,108880.0,108870.0,0.9707271]
[1752021240422,0.2865838,108880.0,108870.0,0.9582571]
[1752021240626,0.2865838,108880.0,108870.0,0.9707271]
[1752021241125,0.2865838,108880.0,108870.0,0.88816937]
[1752021241318,0.53716414,108880.0,108870.0,1.17288478]
[1752021241512,0.78774448,108880.0,108870.0,0.29762444]
[1752021241818,0.78774448,108880.0,108870.0,0.25764689]
[1752021242017,1.10774448,108880.0,108870.0,0.07398722]
[1752021242219,1.10774448,108880.0,108870.0,0.15651168]
[1752021242416,1.10774448,108880.0,108870.0,0.11525403]
[1752021243623,1.10774448,108880.0,108870.0,0.29891473]
[1752021243824,0.78774448,108880.0,108870.0,0.29891473]